bitfinex/quotes_SOLUSD_20220109
["timestamp","ask_amount","ask_price","bid_price","bid_amount"]
[1641743305300,26.77599641,139.77,139.69,0.25]
[1641743306301,26.52599641,139.77,139.69,0.25]
[1641743308700,26.52599641,139.77,139.68,21.0402]
[1641743308900,26.52599641,139.77,139.69,0.25]
[1641743309102,26.52599641,139.77,139.68,21.0402]
[1641743309903,0.25,139.76,139.68,21.0402]
[1641743310502,0.25,139.76,139.69,0.25]
[1641743310904,0.25,139.76,139.68,0.25]
[1641743313507,10.752667,139.75,139.68,0.25]
[1641743313710,23.954559,139.75,139.68,0.25]
[1641743314008,11.662892,139.74,139.66,22.8188]
[1641743314209,1.789,139.73,139.65,94.7]
[1641743314410,3.578,139.73,139.65,94.7]
[1641743315008,0.25,139.72,139.65,94.7]
[1641743316012,29.971922,139.71,139.65,94.7]
[1641743316210,28.58038658,139.7,139.65,94.7]
[1641743316610,0.25,139.69,139.65,94.7]
[1641743316814,28.58038658,139.7,139.65,94.7]
[1641743316815,1.789,139.68,139.65,94.7]
[1641743317014,17.48142094,139.67,139.65,94.7]
[1641743317211,6.06439994,139.67,139.65,94.7]
[1641743319517,0.25,139.66,139.65,94.7]
[1641743320144,0.25,139.66,139.59,1.79]
[1641743320313,2.04,139.66,139.57,10.3]
[1641743320715,0.25,139.66,139.57,10.3]
[1641743320915,0.25,139.66,139.58,0.25]
[1641743322620,24.20694194,139.64,139.57,3.25]
[1641743322820,24.20694194,139.64,139.57,3.0]
[1641743323318,24.20694194,139.64,139.57,13.7486]
[1641743323916,24.20694194,139.64,139.57,11.2486]
[1641743324118,24.20694194,139.64,139.57,10.7486]
[1641743324318,24.20694194,139.64,139.58,0.25]
[1641743324520,24.20694194,139.64,139.58,10.9971]
[1641743324718,24.20694194,139.64,139.58,10.7471]
[1641743324918,24.20694194,139.64,139.59,0.25]
[1641743325320,3.58,139.69,139.59,0.25]
[1641743325521,1.79,139.69,139.59,0.25]
[1641743325721,1.79,139.69,139.6,1.78082586]
[1641743325920,23.8668,139.7,139.61,0.25]
[1641743326120,3.58,139.71,139.61,0.25]
[1641743326322,26.37566276,139.69,139.62,1.79]
[1641743326522,26.37566276,139.69,139.63,0.25]
[1641743327520,26.37566276,139.69,139.64,10.7431]
[1641743327726,26.37566276,139.69,139.63,0.25]
[1641743328126,26.37566276,139.69,139.62,2.04]
[1641743329927,3.58,139.72,139.64,10.743]
[1641743330332,1.79,139.72,139.65,0.25]
[1641743330530,1.789,139.75,139.65,0.25]
[1641743330531,3.578,139.75,139.65,0.25]
[1641743330931,0.25,139.74,139.65,0.25]
[1641743331132,1.789,139.73,139.65,0.25]
[1641743331334,3.578,139.73,139.65,0.25]
[1641743331531,11.662098,139.72,139.65,0.25]
[1641743331734,11.412098,139.71,139.65,0.25]
[1641743331931,11.412098,139.71,139.63,0.25]
[1641743332233,1.789,139.7,139.63,0.25]
[1641743332635,3.578,139.71,139.63,0.25]
[1641743332833,27.227265,139.7,139.61,95.7078]
[1641743333033,29.35061216,139.68,139.61,95.7078]
[1641743333232,29.35061216,139.68,139.61,21.0455]
[1641743333933,29.35061216,139.68,139.62,0.25]
[1641743334134,15.77396,139.67,139.59,86.8548]
[1641743334334,1.79,139.66,139.59,86.8548]
[1641743334537,1.79,139.66,139.6,0.25]
[1641743334737,3.83,139.67,139.6,0.25]
[1641743335360,21.088804,139.66,139.6,0.25]
[1641743335959,21.088804,139.66,139.59,12.5364]
[1641743336158,3.83,139.67,139.59,10.7464]
[1641743336359,21.081224,139.66,139.58,24.0175]
[1641743336760,3.83,139.67,139.58,24.0175]
[1641743336961,3.83,139.67,139.57,107.8596]
[1641743337459,3.0,139.66,139.58,0.25]
[1641743337660,3.0,139.66,139.58,10.9978]
[1641743338461,3.58,139.67,139.58,10.9978]
[1641743338661,3.0,139.66,139.58,12.7878]
[1641743339263,29.35061216,139.68,139.58,12.7878]
[1641743339464,3.0,139.67,139.58,12.7878]
[1641743341567,3.0,139.67,139.58,12.5378]
[1641743341765,29.35061216,139.68,139.64,0.31427061]
[1641743342369,29.35061216,139.68,139.63,0.25]
[1641743343767,38.088567,139.67,139.6,1.79]
[1641743343967,3.83,139.67,139.6,1.79]
[1641743344668,18.253084,139.66,139.6,1.79]
[1641743344869,0.25,139.65,139.6,1.79]
[1641743345068,0.25,139.65,139.59,24.4488]
[1641743345267,0.25,139.65,139.6,0.25]
[1641743345468,3.25,139.65,139.59,0.25]
[1641743345671,0.25,139.65,139.59,0.25]
[1641743345968,0.25,139.65,139.58,10.3]
[1641743346169,62.6185,139.57,139.55,96.49]
[1641743346368,6.06439994,139.56,139.55,96.49]
[1641743346568,31.67236154,139.56,139.55,96.49]
[1641743347169,31.67236154,139.56,139.55,1.79]
[1641743347372,33.46336154,139.56,139.54,3.96947424]
[1641743347570,31.67236154,139.56,139.5,94.7]
[1641743348170,31.67236154,139.56,139.51,0.25]
[1641743348472,25.6079616,139.56,139.51,0.25]
[1641743350471,25.6079616,139.56,139.5,0.25]
[1641743350671,25.6079616,139.56,139.5,21.304]
[1641743350870,25.6079616,139.56,139.51,0.25]
[1641743353375,62.6185,139.57,139.51,0.25]
[1641743353580,62.6185,139.57,139.52,1.791]
[1641743354005,62.6185,139.57,139.53,0.25]
[1641743354806,62.6185,139.57,139.53,10.7515]
[1641743356309,3.582,139.62,139.55,75.0]
[1641743356508,1.791,139.62,139.55,96.37005242]
[1641743356707,1.791,139.62,139.56,0.25]
[1641743356907,23.46895905,139.63,139.56,0.25]
[1641743357508,23.46895905,139.63,139.57,10.7484]
[1641743357811,23.46895905,139.63,139.55,12.09]
[1641743357812,23.46895905,139.63,139.55,1.79]
[1641743358010,4.79,139.62,139.53,84.8202]
[1641743358209,4.79,139.62,139.54,1.791]
[1641743358512,4.79,139.62,139.53,84.8202]
[1641743358513,3.0,139.61,139.57,10.7485]
[1641743359010,31.9112286,139.6,139.58,0.25]
[1641743359208,34.94342857,139.6,139.58,0.25]
[1641743359410,3.03219997,139.59,139.58,0.25]
[1641743360513,3.03219997,139.6,139.58,0.25]
[1641743361014,3.0,139.61,139.58,0.25]
[1641743361215,29.18358381,139.6,139.58,0.25]
[1641743361614,29.18358381,139.6,139.55,10.7495]
[1641743361815,29.18358381,139.6,139.56,0.25]
[1641743363017,29.18358381,139.6,139.54,0.25]
[1641743363218,37.02458381,139.6,139.51,1.791]
[1641743363420,2.041,139.59,139.52,0.25]
[1641743363617,3.832,139.59,139.52,0.25]
[1641743364618,29.88202219,139.57,139.51,0.25]
[1641743364818,36.38102219,139.57,139.5,21.0533]
[1641743365425,36.38102219,139.57,139.5,10.3]
[1641743365918,0.25,139.56,139.5,10.3]
[1641743366119,0.25,139.56,139.51,0.25]
[1641743366520,0.25,139.56,139.5,0.25]
[1641743368629,3.25,139.56,139.5,0.25]
[1641743368824,3.25,139.56,139.48,115.7548]
[1641743368825,24.571566,139.55,139.48,94.7]
[1641743369029,11.411438,139.54,139.46,1.791]
[1641743369229,1.792,139.53,139.44,3.96947424]
[1641743369430,11.663074,139.52,139.44,3.96947424]
[1641743369630,1.792,139.51,139.44,3.96947424]
[1641743369832,1.792,139.51,139.42,10.3]
[1641743369833,23.55366677,139.5,139.42,10.3]
[1641743370033,23.55366677,139.5,139.43,3.0]
[1641743370629,0.25,139.49,139.41,100.46147424]
[1641743370831,1.792,139.48,139.41,94.7]
[1641743371031,1.792,139.48,139.39,12.092]
[1641743371032,3.584,139.48,139.39,10.3]
[1641743371432,39.44180008,139.47,139.39,10.3]
[1641743371631,24.91056708,139.47,139.39,10.3]
[1641743371929,24.91056708,139.47,139.4,0.25]
[1641743372530,3.0,139.46,139.4,0.25]
[1641743373956,3.0,139.46,139.4,11.0113]
[1641743374157,24.91056708,139.47,139.4,11.0113]
[1641743375560,24.91056708,139.47,139.4,33.72484565]
[1641743376460,24.91056708,139.47,139.4,11.0113]
[1641743377260,24.91056708,139.47,139.4,10.7613]
[1641743377460,24.4578,139.49,139.4,39.31143296]
[1641743377660,24.4578,139.49,139.42,10.7599]
[1641743378264,24.2078,139.49,139.42,10.7599]
[1641743378461,54.7837726,139.49,139.42,10.7599]
[1641743378763,54.7837726,139.49,139.43,11.0091]
[1641743378962,30.5759726,139.49,139.44,0.25]
[1641743379765,5.722036,139.48,139.44,0.25]
[1641743379963,5.722036,139.48,139.42,0.25]
[1641743380171,30.5759726,139.49,139.42,0.25]
[1641743380574,3.0,139.48,139.42,0.25]
[1641743381170,3.0,139.48,139.41,1.792]
[1641743381370,3.0,139.48,139.4,72.168]
[1641743381371,3.0,139.48,139.44,10.7585]
[1641743381572,30.5759726,139.49,139.44,10.7585]
[1641743381770,11.40505,139.48,139.44,10.7585]
[1641743382174,11.40505,139.48,139.4,109.8232]
[1641743382373,30.5759726,139.49,139.41,0.25]
[1641743382774,30.5759726,139.49,139.4,109.8232]
[1641743382973,2.042,139.48,139.4,82.468]
[1641743383273,3.834,139.48,139.4,82.468]
[1641743383872,3.834,139.48,139.41,0.25]
[1641743384073,2.042,139.48,139.4,82.468]
[1641743384272,0.25,139.48,139.4,82.468]
[1641743384475,3.584,139.5,139.4,82.468]
[1641743384674,1.792,139.5,139.41,1.792]
[1641743384873,73.8092,139.53,139.42,10.3]
[1641743385074,26.9697,139.56,139.43,1.792]
[1641743385275,26.9697,139.56,139.44,10.3]
[1641743385475,26.47173068,139.55,139.48,10.755]
[1641743385877,3.0,139.54,139.48,10.755]
[1641743386078,3.0,139.53,139.46,73.9251]
[1641743386276,3.0,139.53,139.47,0.25]
[1641743386675,3.0,139.53,139.47,11.0061]
[1641743387076,31.90481243,139.52,139.47,11.0061]
[1641743388180,3.584,139.55,139.47,11.0061]
[1641743388377,1.792,139.55,139.47,11.0061]
[1641743388580,26.9677,139.56,139.47,11.0061]
[1641743389279,27.16085798,139.55,139.47,11.0061]
[1641743389478,30.16085798,139.55,139.47,11.0061]
[1641743390083,27.16085798,139.55,139.47,21.3061]
[1641743390281,3.582,139.56,139.47,21.3061]
[1641743390480,1.791,139.56,139.47,23.08692586]
[1641743390684,1.791,139.59,139.48,1.791]
[1641743390880,50.1256,139.6,139.51,10.7529]
[1641743391083,48.3346,139.6,139.51,10.7529]
[1641743391283,31.81074588,139.59,139.51,10.7529]
[1641743391489,33.60174588,139.59,139.52,0.25]
[1641743391683,11.400179,139.58,139.52,0.25]
[1641743391981,2.041,139.57,139.49,44.8648]
[1641743392181,2.041,139.57,139.49,21.054]
[1641743392381,2.041,139.57,139.5,0.25]
[1641743392584,30.84668159,139.56,139.5,0.25]
[1641743393686,3.582,139.59,139.5,0.25]
[1641743393882,3.582,139.59,139.5,12.78462586]
[1641743394083,3.582,139.59,139.51,10.3]
[1641743394283,1.791,139.59,139.52,1.791]
[1641743394482,3.582,139.61,139.53,10.3]
[1641743394684,1.791,139.61,139.54,25.70295254]
[1641743394884,1.791,139.61,139.54,25.95295254]
[1641743395083,1.791,139.61,139.57,10.7485]
[1641743395309,22.97178667,139.61,139.55,10.3]
[1641743395507,22.97178667,139.61,139.56,0.25]
[1641743396106,1.791,139.64,139.56,0.25]
[1641743396508,3.0,139.63,139.56,0.25]
[1641743396707,3.0,139.63,139.56,2.04]
[1641743397410,3.0,139.63,139.56,12.7893]
[1641743398017,3.0,139.63,139.56,10.9993]
[1641743401338,3.0,139.63,139.56,0.25]
[1641743401735,3.0,139.63,139.55,10.3]
[1641743401935,4.79,139.63,139.55,10.3]
[1641743402536,4.79,139.63,139.56,0.25]
[1641743402737,6.58,139.63,139.56,0.25]
[1641743402940,6.58,139.63,139.56,27.68521548]
[1641743403740,4.79,139.63,139.56,29.47521548]
[1641743403941,4.79,139.63,139.56,12.7893]
[1641743404841,3.0,139.63,139.56,40.95662302]
[1641743407344,3.58,139.66,139.56,40.95662302]
[1641743408245,35.25104322,139.66,139.56,40.95662302]
[1641743408847,3.58,139.66,139.57,10.3]
[1641743409048,1.79,139.66,139.58,1.79]
[1641743409245,1.79,139.69,139.62,10.7443]
[1641743409446,24.5201,139.72,139.62,10.7443]
[1641743409447,26.3101,139.72,139.63,0.25]
[1641743409746,25.20570744,139.7,139.63,0.25]
[1641743410185,25.20570744,139.7,139.63,10.9937]
[1641743411850,26.3101,139.72,139.63,10.9937]
[1641743412749,3.58,139.72,139.64,12.07893076]
[1641743412951,3.58,139.72,139.68,10.7391]
[1641743413151,3.58,139.72,139.69,33.68476471]
[1641743413354,3.58,139.72,139.69,33.93476471]
[1641743413753,3.58,139.72,139.69,44.23476471]
[1641743414152,3.58,139.72,139.69,42.44576471]
[1641743414352,3.58,139.72,139.69,10.55]
[1641743414552,3.58,139.72,139.7,10.7377]
[1641743414755,3.58,139.72,139.68,1.789]
[1641743414951,1.79,139.72,139.68,1.789]
[1641743415252,25.76736464,139.71,139.68,1.789]
[1641743415452,27.3737,139.76,139.68,1.789]
[1641743415654,3.03219997,139.7,139.68,1.789]
[1641743415852,3.03219997,139.7,139.67,10.3]
[1641743416051,3.03219997,139.7,139.68,10.3]
[1641743416252,24.7306,139.74,139.68,10.3]
[1641743416453,4.104887,139.73,139.68,10.3]
[1641743417053,4.104887,139.73,139.66,10.741]
[1641743417256,2.039,139.72,139.65,10.3]
[1641743417454,3.828,139.72,139.65,10.3]
[1641743417682,3.828,139.72,139.61,10.3]
[1641743417883,10.7477,139.68,139.58,12.5361]
[1641743418084,29.74565192,139.67,139.58,21.0471]
[1641743418281,31.78565192,139.67,139.58,10.3]
[1641743419184,31.78565192,139.67,139.55,12.09]
[1641743419381,26.5497,139.66,139.56,0.25]
[1641743419582,1.79,139.65,139.56,10.9986]
[1641743419784,30.79344104,139.64,139.56,10.9986]
[1641743422285,30.79344104,139.64,139.57,1.79]
[1641743422485,30.79344104,139.64,139.58,0.25]
[1641743423086,3.0,139.63,139.58,0.25]
[1641743423891,11.408999,139.62,139.58,0.25]
[1641743424289,11.408999,139.62,139.57,0.25]
[1641743424686,25.2646888,139.61,139.57,0.25]
[1641743424887,25.2646888,139.61,139.55,12.09]
[1641743425087,25.2646888,139.61,139.55,1.79]
[1641743425288,0.25,139.6,139.55,1.79]
[1641743425488,2.041,139.6,139.55,1.79]
[1641743426890,12.7947,139.6,139.55,1.79]
[1641743428590,3.0,139.59,139.49,75.8818]
[1641743428791,10.7565,139.57,139.49,75.8818]
[1641743429090,32.82600891,139.56,139.49,75.8818]
[1641743429290,34.61700891,139.56,139.49,75.8818]
[1641743429691,34.36700891,139.56,139.5,0.25]
[1641743429893,1.791,139.56,139.5,0.25]
[1641743430094,1.791,139.58,139.5,0.25]
[1641743430294,3.582,139.59,139.5,8.926]
[1641743430502,1.791,139.59,139.5,8.926]
[1641743431494,0.25,139.58,139.5,8.676]
[1641743431694,0.25,139.58,139.48,10.3]
[1641743431695,1.791,139.57,139.48,10.3]
[1641743432294,11.407359,139.56,139.48,10.3]
[1641743432494,40.69613988,139.56,139.48,10.3]
[1641743432894,29.28878088,139.56,139.49,0.25]
[1641743433996,3.0,139.55,139.49,0.25]
[1641743434597,29.28878088,139.56,139.48,22.846]
[1641743434795,3.0,139.54,139.48,10.3]
[1641743434995,3.0,139.53,139.48,10.3]
[1641743435395,3.583,139.55,139.48,10.3]
[1641743435598,3.25,139.54,139.48,10.3]
[1641743437800,3.25,139.54,139.45,61.7504]
[1641743438000,3.583,139.53,139.46,0.25]
[1641743438600,29.92692392,139.53,139.46,0.25]
[1641743439201,28.13592392,139.53,139.46,0.25]
[1641743440704,26.34392392,139.53,139.46,0.25]
[1641743442104,3.0,139.52,139.46,0.25]
[1641743448110,3.584,139.54,139.46,11.0069]
[1641743448310,1.792,139.54,139.46,21.0569]
[1641743448511,25.4108,139.55,139.47,2.042]
[1641743448713,23.6188,139.55,139.47,2.042]
[1641743449011,23.6188,139.55,139.48,25.49748859]
[1641743449413,23.6188,139.55,139.49,0.25]
[1641743451934,3.0,139.54,139.49,0.25]
[1641743456441,9.26415798,139.56,139.5,10.3]
[1641743456640,1.791,139.61,139.51,3.0]
[1641743456840,4.02705527,139.61,139.53,27.07255858]
[1641743457039,4.02705527,139.61,139.54,10.3]
[1641743457240,4.02705527,139.61,139.54,10.55]
[1641743457439,4.02705527,139.61,139.55,1.78082586]
[1641743457641,23.6476769,139.64,139.56,10.3]
[1641743457940,23.6476769,139.64,139.58,10.7475]
[1641743458343,23.6476769,139.64,139.59,0.25]
[1641743460142,23.6476769,139.64,139.58,10.7475]
[1641743460343,23.6476769,139.64,139.56,12.08082586]
[1641743460344,23.6476769,139.64,139.56,10.3]
[1641743460542,1.79,139.63,139.56,10.3]
[1641743460947,1.79,139.63,139.55,1.79]
[1641743461947,0.25,139.62,139.55,1.79]
[1641743462148,0.25,139.62,139.54,75.0326]
[1641743462346,0.25,139.62,139.55,0.25]
[1641743462748,0.25,139.62,139.52,1.791]
[1641743463045,1.791,139.61,139.49,10.3]
[1641743463249,31.62763943,139.6,139.48,10.7549]
[1641743463450,1.791,139.59,139.48,10.7549]
[1641743463647,28.381,139.59,139.49,23.41524012]
[1641743463848,26.59,139.59,139.52,10.7522]
[1641743464048,31.62763943,139.6,139.52,42.14879976]
[1641743464249,31.62763943,139.6,139.53,1.791]
[1641743464649,31.62763943,139.6,139.54,0.25]
[1641743466054,26.3733,139.62,139.54,0.25]
[1641743466252,0.25,139.61,139.54,0.25]
[1641743467855,0.25,139.61,139.54,11.0008]
[1641743468557,3.25,139.61,139.54,11.0008]
[1641743468755,3.25,139.61,139.55,25.71127931]
[1641743468959,3.0,139.61,139.56,0.25]
[1641743469155,3.0,139.61,139.56,12.7902]
[1641743469355,24.94532115,139.63,139.56,12.7902]
[1641743469556,3.0,139.62,139.57,10.3]
[1641743469757,3.0,139.62,139.58,1.79]
[1641743469957,3.0,139.62,139.58,29.23245506]
[1641743470192,1.96472115,139.65,139.58,29.23245506]
[1641743470457,3.0,139.64,139.58,16.6048]
[1641743471059,25.90753097,139.66,139.58,16.6048]
[1641743471456,25.90753097,139.66,139.58,41.89922252]
[1641743471858,1.96472115,139.66,139.58,41.89922252]
[1641743472259,1.96472115,139.66,139.59,12.09]
[1641743472559,1.96472115,139.67,139.62,10.7436]
[1641743472757,1.96472115,139.67,139.63,1.79]
[1641743472958,1.96472115,139.67,139.63,26.79682831]
[1641743473158,1.96472115,139.67,139.63,37.09682831]
[1641743473359,1.96472115,139.67,139.63,14.19082586]
[1641743473360,2.115e-05,139.67,139.63,14.19082586]
[1641743473660,2.115e-05,139.71,139.65,10.7419]
[1641743473858,2.115e-05,139.71,139.66,1.789]
[1641743474059,2.115e-05,139.71,139.66,2.039]
[1641743474259,2.115e-05,139.71,139.66,14.11982586]
[1641743474561,24.8498,139.75,139.66,49.91382586]
[1641743474758,24.8498,139.75,139.7,10.7385]
[1641743474959,24.8498,139.75,139.71,0.25]
[1641743475160,28.40606532,139.76,139.71,0.25]
[1641743475368,28.40606532,139.76,139.7,10.7385]
[1641743475369,28.40606532,139.76,139.68,12.089]
[1641743475560,2.039,139.75,139.68,10.3]
[1641743475761,3.828,139.75,139.68,10.3]
[1641743476164,3.828,139.75,139.68,21.0394]
[1641743476562,14.5704,139.75,139.64,1.789]
[1641743476765,23.7775,139.74,139.62,10.3]
[1641743476966,2.039,139.73,139.6,10.3]
[1641743477362,28.53192806,139.72,139.6,10.3]
[1641743477568,1.79,139.71,139.6,10.3]
[1641743477772,26.4213,139.71,139.6,10.3]
[1641743478067,26.4213,139.71,139.63,10.7439]
[1641743478264,24.6313,139.71,139.63,10.7439]
[1641743478463,22.8413,139.71,139.64,0.25]
[1641743478666,22.8413,139.71,139.63,10.7439]
[1641743478864,1.789,139.7,139.63,10.7439]
[1641743479065,30.97398336,139.69,139.61,10.7448]
[1641743479265,1.79,139.68,139.61,10.7448]
[1641743479465,1.79,139.68,139.6,10.3]
[1641743479466,0.25,139.67,139.6,10.3]
[1641743479764,1.79,139.66,139.57,46.1194]
[1641743479965,0.25,139.65,139.57,46.1194]
[1641743480167,31.59340078,139.65,139.57,46.1194]
[1641743480365,1.79,139.64,139.57,46.1194]
[1641743480566,3.58,139.64,139.59,10.7463]
[1641743480767,3.58,139.64,139.58,0.25]
[1641743480967,1.79,139.64,139.58,0.25]
[1641743481171,31.84340078,139.65,139.57,0.25]
[1641743481368,3.58,139.69,139.57,10.62]
[1641743481567,1.79,139.69,139.6,10.7463]
[1641743481772,106.8948,139.7,139.6,10.7463]
[1641743481970,0.25,139.69,139.61,0.25]
[1641743482468,26.27231286,139.69,139.61,0.25]
[1641743482667,26.02231286,139.69,139.61,0.25]
[1641743482871,26.02231286,139.69,139.6,0.25]
[1641743483072,1.79,139.68,139.6,0.25]
[1641743483470,1.79,139.68,139.59,10.3]
[1641743483981,1.79,139.68,139.6,0.25]
[1641743484271,26.02231286,139.69,139.6,2.04]
[1641743484471,26.02231286,139.69,139.6,30.08501543]
[1641743484873,26.02231286,139.69,139.6,2.04]
[1641743485478,2.04,139.68,139.62,10.7446]
[1641743485676,3.83,139.68,139.62,10.7446]
[1641743487180,3.83,139.68,139.6,10.9957]
[1641743487380,3.83,139.68,139.57,12.09]
[1641743487581,3.83,139.68,139.57,10.3]
[1641743487781,3.83,139.68,139.58,0.25]
[1641743488381,14.5778,139.68,139.58,10.9978]
[1641743488780,3.58,139.68,139.58,10.9978]
[1641743488980,3.58,139.68,139.59,1.79]
[1641743489182,3.58,139.68,139.58,2.04]
[1641743489382,3.58,139.68,139.58,0.25]
[1641743490785,0.25,139.67,139.57,12.09]
[1641743490985,19.17786,139.66,139.57,12.09]
[1641743491190,3.58,139.66,139.57,12.09]
[1641743491389,0.25,139.65,139.57,12.09]
[1641743491602,0.25,139.65,139.58,0.25]
[1641743491798,23.84756053,139.65,139.58,0.25]
[1641743494420,23.84756053,139.65,139.57,0.25]
[1641743494818,3.0,139.64,139.57,10.9985]
[1641743495018,3.0,139.64,139.57,10.7485]
[1641743495219,3.0,139.64,139.58,0.25]
[1641743498724,23.59756053,139.65,139.58,0.25]
[1641743499527,23.59756053,139.65,139.58,10.9976]
[1641743500128,1.79,139.67,139.58,10.9976]
[1641743500428,3.58,139.68,139.59,1.79]
[1641743500628,1.79,139.68,139.62,10.7447]
[1641743500830,107.34185527,139.7,139.62,10.7447]
[1641743501032,28.17845527,139.7,139.63,0.25]
[1641743501231,24.4078815,139.69,139.63,0.25]
[1641743501834,24.1514,139.7,139.63,0.25]
[1641743502032,27.7874,139.71,139.63,27.138]
[1641743502235,1.79,139.71,139.63,27.138]
[1641743502933,33.20594163,139.71,139.63,27.138]
[1641743503531,33.20594163,139.71,139.63,51.78127099]
[1641743503732,31.41594163,139.71,139.63,51.78127099]
[1641743503959,7.60505527,139.73,139.63,51.78127099]
[1641743504360,5.81605527,139.73,139.64,1.789]
[1641743504561,4.02705527,139.73,139.68,10.74]
[1641743504762,4.02705527,139.73,139.68,18.934]
[1641743505259,4.02705527,139.74,139.68,18.934]
[1641743506068,8.07757892,139.74,139.68,18.934]
[1641743506263,8.07757892,139.74,139.69,0.25]
[1641743506468,8.07757892,139.74,139.69,10.989]
[1641743507062,4.02705527,139.76,139.69,10.989]
[1641743508066,33.29406762,139.77,139.69,10.989]
[1641743508265,5.81605527,139.77,139.69,10.989]
[1641743508465,5.81605527,139.77,139.7,12.089]
[1641743508765,5.81605527,139.77,139.73,10.7336]
[1641743509065,5.81605527,139.77,139.74,12.338]
[1641743509265,5.81605527,139.77,139.75,23.8143569]
[1641743509465,5.81605527,139.77,139.76,66.038]
[1641743509670,1.789,139.83,139.76,66.038]
[1641743509970,4.02705527,139.84,139.76,82.265]
[1641743510265,4.02705527,139.84,139.76,92.9973]
[1641743510665,4.02705527,139.86,139.76,92.9973]
[1641743510868,4.02705527,139.86,139.76,94.77812586]
[1641743511064,4.02705527,139.86,139.77,3.07]
[1641743511265,4.02705527,139.86,139.8,10.7305]
[1641743511469,4.02705527,139.86,139.78,10.55]
[1641743511670,34.07898025,139.88,139.78,10.55]
[1641743511671,2.038,139.85,139.78,10.55]
[1641743511880,2.038,139.85,139.78,10.3]
[1641743512478,2.038,139.85,139.79,0.25]
[1641743512681,0.25,139.85,139.79,0.25]
[1641743512891,1.788,139.86,139.79,0.25]
[1641743513086,1.786,139.88,139.79,0.25]
[1641743513491,0.25,139.87,139.79,0.25]
[1641743513790,0.25,139.87,139.79,10.7316]
[1641743513996,29.14832249,139.87,139.79,10.9816]
[1641743514893,29.14832249,139.87,139.78,10.3]
[1641743515095,1.786,139.86,139.77,10.7325]
[1641743515323,2.036,139.86,139.74,10.3]
[1641743515722,2.036,139.86,139.69,1.788]
[1641743515924,12.336,139.86,139.69,12.088]
[1641743516122,23.0698,139.86,139.72,10.7368]
[1641743516322,47.6537,139.86,139.72,10.7368]
[1641743516521,3.0,139.85,139.73,0.25]
[1641743516723,1.788,139.84,139.72,1.78082586]
[1641743516922,2.038,139.84,139.73,0.25]
[1641743517322,2.038,139.84,139.73,0.32]
[1641743517522,2.038,139.84,139.75,10.7347]
[1641743517726,0.25,139.84,139.76,23.99509907]
[1641743518024,0.25,139.84,139.76,24.24509907]
[1641743518223,1.788,139.83,139.76,24.24509907]
[1641743518824,1.788,139.83,139.76,34.72909907]
[1641743519024,0.25,139.82,139.76,34.72909907]
[1641743519222,0.25,139.82,139.76,10.734]